bitfinex-derivatives/quotes_ETHF0:USTF0_20250507
["timestamp","ask_amount","ask_price","bid_price","bid_amount"]
[1746610686571,6.0817,1841.2,1841.1,2.68646]
[1746610690875,5.2199,1841.2,1841.1,2.68646]
[1746610691075,3.6,1841.2,1841.1,2.68646]
[1746610691277,2.73697,1841.5,1841.4,1.08618]
[1746610692177,6.33697,1841.5,1841.4,1.08618]
[1746610693678,1.08632,1841.3,1841.2,1.08625]
[1746610694071,8.04532,1841.3,1841.2,1.08625]
[1746610694475,1.08636,1841.1,1841.0,1.08635]
[1746610694775,1.08647,1841.0,1840.9,1.08643]
[1746610694967,3.57227,1841.0,1840.9,1.08643]
[1746610695167,7.17227,1841.0,1840.9,1.08643]
[1746610695567,7.96187,1841.0,1840.9,1.08643]
[1746610697881,1.08658,1840.8,1840.7,1.08653]
[1746610698177,4.68658,1840.8,1840.7,1.08653]
[1746610698378,6.36748,1840.8,1840.7,1.08653]
[1746610700480,6.36748,1840.8,1840.6,4.2944]
[1746610700481,1.08659,1840.7,1840.6,4.2944]
[1746610700682,3.55979,1840.7,1840.6,1.0866]
[1746610701081,7.15979,1840.7,1840.6,1.0866]
[1746610710486,6.0732,1840.7,1840.6,1.0866]
[1746610711786,5.2809,1840.7,1840.6,1.0866]
[1746610711986,3.6,1840.7,1840.6,3.4722]
[1746610712183,4.8589,1840.9,1840.8,1.08653]
[1746610712488,5.21333,1841.2,1841.1,1.08636]
[1746610712689,5.7781,1841.2,1841.1,1.08636]
[1746610712881,1.6511,1841.2,1841.1,1.08636]
[1746610713282,5.2511,1841.2,1841.1,1.08636]
[1746610713488,5.2511,1841.2,1841.1,3.47186]
[1746610714294,1.6511,1841.2,1841.1,3.47186]
[1746610715487,8.42097,1841.5,1841.1,3.47186]
[1746610715683,8.932,1841.5,1841.4,1.08618]
[1746610715884,4.805,1841.5,1841.4,1.08618]
[1746610716085,8.405,1841.5,1841.4,1.08618]
[1746610718593,6.28332,1841.5,1841.4,1.08618]
[1746610718890,5.1972,1841.5,1841.4,1.08618]
[1746610720992,3.6,1841.5,1841.4,1.08618]
[1746610721291,3.5372,1841.7,1841.6,1.08606]
[1746610721991,2.4512,1841.7,1841.6,1.08606]
[1746610722193,6.0512,1841.7,1841.6,1.08606]
[1746610722697,7.1372,1841.7,1841.6,1.08606]
[1746610726598,6.3097,1841.7,1841.6,1.08606]
[1746610727592,6.3097,1841.7,1841.4,5.43082]
[1746610727802,4.686,1841.7,1841.6,1.08606]
[1746610729000,3.6,1841.7,1841.6,1.08606]
[1746610729393,4.686,1841.7,1841.6,1.08606]
[1746610732798,2.71475,1841.9,1841.6,1.08606]
[1746610732799,3.2078,1842.5,1841.6,14.55524]
[1746610733097,0.8226,1842.3,1842.2,1.08571]
[1746610734304,5.08874,1842.5,1842.4,1.08559]
[1746610734508,5.95254,1842.5,1842.4,1.08559]
[1746610735106,9.55254,1842.5,1842.4,1.08559]
[1746610736806,1.08561,1842.4,1842.3,1.08562]
[1746610737199,4.68561,1842.4,1842.3,1.08562]
[1746610737802,1.08565,1842.3,1842.2,2.78527]
[1746610740313,1.08562,1842.4,1842.3,1.08559]
[1746610740505,1.08562,1842.4,1842.3,2.81579]
[1746610740706,0.8638,1842.5,1842.4,1.08559]
[1746610740914,1.94933,1842.5,1842.4,1.08559]
[1746610741114,5.54933,1842.5,1842.4,1.08559]
[1746610742116,1.94933,1842.5,1842.4,1.08559]
[1746610743311,0.8553,1842.6,1842.5,1.08553]
[1746610743714,1.94077,1842.6,1842.5,1.08553]
[1746610744115,5.54077,1842.6,1842.5,1.08553]
[1746610744309,5.1978,1842.6,1842.5,4.29333]
[1746610744509,3.6,1842.6,1842.5,6.72463]
[1746610745216,1.08537,1842.8,1842.7,1.08541]
[1746610745217,2.68317,1842.8,1842.7,1.08541]
[1746610745414,1.5978,1842.8,1842.7,1.08541]
[1746610745716,1.08512,1843.3,1843.0,2.7131]
[1746610745918,2.68295,1843.2,1843.1,1.08518]
[1746610746308,1.5978,1843.2,1843.1,1.08518]
[1746610746718,1.5978,1843.2,1843.1,4.29298]
[1746610748022,2.68292,1843.2,1843.1,4.29298]
[1746610748224,1.5978,1843.2,1843.1,4.29298]
[1746610749619,2.68292,1843.2,1843.1,4.29298]
[1746610751725,1.08512,1843.3,1843.2,1.08509]
[1746610753226,2.72032,1843.3,1843.2,1.08509]
[1746610753613,1.08512,1843.2,1843.1,8.42193]
[1746610753819,2.80452,1843.2,1843.1,8.42193]
[1746610754525,2.80452,1843.2,1843.1,8.42093]
[1746610756917,2.80452,1843.2,1843.1,4.29293]
[1746610757123,6.40452,1843.2,1843.1,4.29293]
[1746610757728,6.40452,1843.2,1842.8,5.25218]
[1746610757729,1.08534,1842.9,1842.8,4.2931]
[1746610757923,1.08534,1842.9,1842.8,3.2078]
[1746610758226,1.0854,1842.8,1842.7,1.08536]
[1746610758429,3.539,1842.8,1842.7,1.08536]
[1746610759330,3.53895,1842.8,1842.7,1.08536]
[1746610759533,2.4536,1842.8,1842.7,1.08536]
[1746610759931,3.53895,1842.8,1842.7,1.08536]
[1746610760130,7.13895,1842.8,1842.7,1.08536]
[1746610761732,6.0536,1842.8,1842.7,1.08536]
[1746610762427,2.4536,1842.8,1842.7,1.08536]
[1746610763129,7.13895,1842.8,1842.7,1.08536]
[1746610764134,3.53895,1842.8,1842.7,1.08536]
[1746610765341,7.13895,1842.8,1842.7,1.08536]
[1746610770738,1.08541,1842.7,1842.6,8.42122]
[1746610771037,2.78341,1842.7,1842.6,8.42122]
[1746610772641,2.78341,1842.7,1842.6,4.29322]
[1746610777238,6.38341,1842.7,1842.6,4.29322]
[1746610778342,5.298,1842.7,1842.6,4.29322]
[1746610779244,1.698,1842.7,1842.6,4.29322]
[1746610780441,1.698,1842.7,1842.6,5.93502]
[1746610782444,1.698,1842.7,1842.6,4.29322]
[1746610783145,2.78341,1842.7,1842.6,4.29322]
[1746610784248,6.38341,1842.7,1842.6,4.29322]
[1746610787444,7.24591,1842.7,1842.6,4.29322]
[1746610788350,7.24591,1842.7,1842.6,1.08542]
[1746610788947,6.1605,1842.7,1842.6,1.08542]
[1746610789551,3.6,1842.7,1842.6,2.79072]
[1746610789748,1.6497,1842.9,1842.8,1.08535]
[1746610790457,2.735,1842.9,1842.8,1.08535]
[1746610791154,6.335,1842.9,1842.8,1.08535]
[1746610792946,1.0854,1842.8,1842.7,1.08536]
[1746610793149,3.5467,1842.8,1842.7,1.08536]
[1746610794251,7.1467,1842.8,1842.7,1.08536]
[1746610801057,1.08547,1842.7,1842.6,1.08542]
[1746610801261,1.08547,1842.7,1842.4,2.71392]
[1746610801262,1.08552,1842.6,1842.5,1.08547]
[1746610801456,2.4672,1842.7,1842.6,1.08547]
[1746610802264,6.0672,1842.7,1842.6,1.08547]
[1746610802564,7.15261,1842.7,1842.6,1.08547]
[1746610803364,6.0672,1842.7,1842.6,1.08547]
[1746610804765,7.15261,1842.7,1842.6,1.08547]
[1746610805759,1.08555,1842.6,1842.5,1.08549]
[1746610805960,2.77865,1842.6,1842.5,1.08549]
[1746610806262,6.37865,1842.6,1842.5,1.08549]
[1746610806465,5.2931,1842.6,1842.5,1.08549]
[1746610807367,6.37857,1842.6,1842.5,1.08549]
[1746610807763,5.2931,1842.6,1842.5,1.08549]
[1746610807964,5.2931,1842.6,1842.5,4.29329]
[1746610808167,1.6931,1842.6,1842.5,4.29329]
[1746610808466,1.6931,1842.6,1842.5,5.89869]
[1746610811671,0.8648,1842.7,1842.6,1.08547]
[1746610811967,2.5634,1842.7,1842.6,2.70967]
[1746610812167,2.5634,1842.7,1842.6,1.08547]
[1746610819777,2.5634,1842.7,1842.6,4.29327]
[1746610822474,2.5634,1842.7,1842.6,6.02377]
[1746610822977,1.6986,1842.7,1842.6,6.02377]
[1746610825678,4.29297,1843.2,1842.7,5.427]
[1746610825881,1.6946,1843.0,1842.9,1.0853]
[1746610826078,1.6946,1843.0,1842.9,2.82]
[1746610826281,0.8673,1843.1,1843.0,1.08524]
[1746610826482,0.8673,1843.1,1843.0,5.94114]
[1746610829788,1.7256,1843.2,1843.1,1.08518]
[1746610829985,1.7256,1843.2,1843.1,2.74838]
[1746610832386,1.7256,1843.2,1843.1,3.55318]
[1746610832881,0.8736,1843.4,1843.3,1.08506]
[1746610833089,2.5252,1843.4,1843.3,1.08506]
[1746610833385,2.5252,1843.4,1843.3,4.29286]
[1746610834278,3.6,1843.4,1843.3,4.29286]
[1746610834680,3.6,1843.4,1843.3,5.92356]
[1746610835389,3.6,1843.4,1843.3,4.29286]
[1746610835585,5.2033,1843.4,1843.3,4.29286]
[1746610837678,6.8418,1843.4,1843.3,4.29286]
[1746610838079,3.2418,1843.4,1843.3,4.29286]
[1746610841491,2.4364,1843.4,1843.3,4.29286]
[1746610841882,2.4364,1843.4,1843.3,5.97456]
[1746610842186,6.0364,1843.4,1843.3,5.97456]
[1746610842493,5.2385,1843.4,1843.3,5.97456]
[1746610845390,5.2385,1843.4,1843.3,4.29286]
[1746610847198,6.0378,1843.4,1843.3,4.29286]
[1746610850196,6.0378,1843.4,1843.3,6.02436]
[1746610851693,6.0378,1843.4,1843.3,4.29286]
[1746610859592,6.0378,1843.4,1843.3,1.08506]
[1746610859793,6.0378,1843.4,1843.3,4.29286]
[1746610861601,5.2385,1843.4,1843.3,4.29286]
[1746610861800,5.2385,1843.4,1843.3,6.01626]
[1746610862000,5.2385,1843.4,1843.3,7.70816]
[1746610863396,3.6,1843.4,1843.3,7.70816]
[1746610863598,2.2787,1843.4,1843.3,7.70816]
[1746610863895,0.8478,1843.7,1843.6,1.08488]
[1746610864096,0.8478,1843.7,1843.6,4.29268]
[1746610865100,4.4478,1843.7,1843.6,4.29268]
[1746610866604,6.0468,1843.7,1843.6,4.29268]
[1746610873299,7.13162,1843.7,1843.6,4.29268]
[1746610873697,6.0468,1843.7,1843.6,4.29268]
[1746610875205,7.13162,1843.7,1843.6,4.29268]
[1746610875906,6.0468,1843.7,1843.6,4.29268]
[1746610876403,7.13162,1843.7,1843.6,4.29268]
[1746610876906,7.13162,1843.7,1843.6,1.08488]
[1746610877106,6.0468,1843.7,1843.6,1.08488]
[1746610877307,7.13162,1843.7,1843.6,1.08488]
[1746610880508,6.0468,1843.7,1843.6,1.08488]
[1746610881711,7.13162,1843.7,1843.6,1.08488]
[1746610882611,7.13751261,1843.7,1843.6,1.08488]
[1746610883705,6.05269261,1843.7,1843.6,1.08488]
[1746610884105,7.13751261,1843.7,1843.6,1.08488]
[1746610884308,6.05269261,1843.7,1843.6,4.29268]
[1746610885916,5.20489261,1843.7,1843.6,4.29268]
[1746610891918,3.60589261,1843.7,1843.6,4.29268]
[1746610892713,2.28450261,1843.7,1843.6,4.29268]
[1746610892913,1.7164,1844.1,1844.0,1.08465]
[1746610893124,0.8403,1844.1,1844.0,4.29245]
[1746610893420,2.4973,1844.3,1844.2,1.08453]
[1746610893721,3.3376,1844.3,1844.2,1.08453]
[1746610894121,6.9376,1844.3,1844.2,1.08453]
[1746610895217,8.02207,1844.3,1844.2,1.08453]
[1746610896023,6.9376,1844.3,1844.2,1.08453]
[1746610898733,8.02207,1844.3,1844.2,1.08453]
[1746610899433,6.9376,1844.3,1844.2,1.08453]
[1746610900632,8.02207,1844.3,1844.2,1.08453]
[1746610902936,6.9376,1844.3,1844.2,1.08453]
[1746610903736,8.02207,1844.3,1844.2,1.08453]
[1746610904938,6.9376,1844.3,1844.2,1.08453]
[1746610905137,8.02207,1844.3,1844.2,1.08453]
[1746610909231,6.9376,1844.3,1844.2,1.08453]
[1746610909434,8.02207,1844.3,1844.2,1.08453]
[1746610911038,1.25233,1844.3,1844.2,1.08453]
[1746610911235,9.00257011,1845.0,1844.9,1.08412]
[1746610911538,10.61737011,1845.0,1844.9,4.29192]
[1746610911936,10.61737011,1845.0,1844.9,5.99432]
[1746610912136,14.21737011,1845.0,1844.9,5.99432]
[1746610913340,14.21737011,1845.0,1844.9,4.29192]
[1746610916146,5.2148,1845.0,1844.9,4.29192]
[1746610919548,6.29886,1845.0,1844.9,4.29192]
[1746610920047,5.2148,1845.0,1844.9,4.29192]
[1746610926054,4.68406,1845.0,1844.9,4.29192]
[1746610926256,3.6,1845.0,1844.9,4.29192]
[1746610926954,5.3104,1845.0,1844.9,4.29192]
[1746610927855,1.08412,1844.9,1844.8,1.08413]
[1746610928150,3.54242,1844.9,1844.8,1.08413]
[1746610928353,2.4583,1844.9,1844.8,1.08413]
[1746610929151,6.0583,1844.9,1844.8,1.08413]
[1746610929657,6.0583,1844.9,1844.7,1.08418]
[1746610929859,2.4884,1844.8,1844.5,3.2078]
[1746610930156,2.73058,1844.7,1844.6,1.0843]
[1746610931158,5.2463,1844.7,1844.6,1.0843]
[1746610931655,3.6,1844.7,1844.6,2.6618]
[1746610931857,3.6,1844.7,1844.6,8.5359]
[1746610932559,3.6,1844.7,1844.6,3.5359]
[1746610948663,5.344,1844.7,1844.6,3.5359]
[1746610950172,3.6,1844.7,1844.6,3.5359]
[1746610951674,9.00257011,1845.9,1845.8,1.08359]
[1746610952169,12.60257011,1845.9,1845.8,1.08359]
[1746610952970,13.43487011,1845.9,1845.8,1.08359]
[1746610953170,12.60257011,1845.9,1845.8,4.29139]
[1746610955077,4.41097011,1845.9,1845.8,4.29139]
[1746610956774,3.6,1845.9,1845.8,4.29139]
[1746610959676,3.6048386,1845.9,1845.8,4.29139]
[1746610961083,3.6048386,1845.9,1845.8,3.2078]
[1746610961275,4.6883686,1845.9,1845.8,4.29139]
[1746610961476,3.6048386,1845.9,1845.8,4.29139]
[1746610961875,6.1201386,1845.9,1845.8,4.29139]
[1746610966381,7.2036686,1845.9,1845.8,4.29139]
[1746610967183,6.1201386,1845.9,1845.8,4.29139]
[1746610967383,7.2036686,1845.9,1845.8,4.29139]
[1746610967575,6.1201386,1845.9,1845.8,4.29139]
[1746610967976,7.2036686,1845.9,1845.8,4.29139]
[1746610968175,7.2036686,1845.9,1845.8,1.08359]
[1746610968381,12.2036686,1845.9,1845.8,1.08359]
[1746610968582,7.2036686,1845.9,1845.8,1.08359]
[1746610968783,1.08365,1845.8,1845.6,3.2078]
[1746610968985,6.84645,1845.8,1845.7,1.08365]
[1746610969186,10.44645,1845.8,1845.7,1.08365]
[1746610969492,1.08373,1845.7,1845.6,1.08367]
[1746610969679,2.80753,1845.7,1845.6,1.08367]
[1746610969880,1.08378,1845.6,1845.5,1.08372]
[1746610970076,2.80758,1845.6,1845.5,1.08372]
[1746610970285,6.40758,1845.6,1845.5,1.08372]
[1746610970587,5.3238,1845.6,1845.5,1.08372]
[1746610970888,6.40751,1845.6,1845.5,1.08372]
[1746610971089,5.3238,1845.6,1845.5,1.08372]
[1746610972791,6.40751,1845.6,1845.5,1.08372]
[1746610976494,1.08387,1845.4,1845.3,1.08381]
[1746610977194,4.68387,1845.4,1845.3,1.08381]
[1746610977387,7.19407,1845.4,1845.3,1.08381]
[1746610979599,14.318,1845.4,1844.7,3.2078]
[1746610979790,1.08409,1845.0,1844.9,1.08407]
[1746610979991,3.2078,1845.1,1845.0,1.08406]
[1746610979992,4.29185,1845.1,1845.0,1.08406]
[1746610980191,5.13105,1845.1,1845.0,1.08406]
[1746610981100,1.08412,1845.0,1844.9,1.08407]
[1746610981990,1.08418,1844.9,1844.8,1.08416]
[1746610983197,4.68418,1844.9,1844.8,1.08416]
[1746610983404,1.08418,1844.8,1844.7,4.292]
[1746610983602,1.89508,1844.8,1844.7,4.292]
[1746610984200,5.49508,1844.8,1844.7,4.292]
[1746610984392,5.49508,1844.8,1844.7,3.2078]
[1746610984599,1.0843,1844.6,1844.5,4.84053]
[1746610984895,1.0843,1844.6,1844.5,5.92488]
[1746610985098,4.6843,1844.6,1844.5,5.92488]
[1746610987300,4.6843,1844.6,1844.5,4.84053]
[1746610989407,4.6843,1844.6,1844.5,5.92488]
[1746610991910,5.5167,1844.6,1844.5,5.92488]
[1746610994312,7.2295,1844.6,1844.5,5.92488]
[1746610995311,7.2295,1844.6,1844.5,4.84053]
[1746611004713,6.1452,1844.6,1844.1,2.66434]
[1746611004917,6.1452,1844.6,1844.1,1.08454]
[1746611004918,1.08453,1844.2,1844.1,1.08454]
[1746611006117,7.07303,1844.2,1844.1,1.08454]
[1746611008315,6.28083,1844.2,1844.1,1.08454]
[1746611008722,6.28083,1844.2,1844.1,2.73714]
[1746611017729,6.28083,1844.2,1844.1,1.08454]
[1746611021736,6.28083,1844.2,1844.1,2.76344]
[1746611038547,6.28083,1844.2,1844.1,1.08454]
[1746611042047,6.28083,1844.2,1843.9,8.38155]
[1746611042048,1.08465,1844.0,1843.9,9.13988282]
[1746611042453,0.7971,1844.0,1843.9,9.13988282]
[1746611042647,1.6644,1844.1,1844.0,1.08465]
[1746611042848,1.6644,1844.1,1844.0,2.80515]
[1746611043249,3.6,1844.1,1844.0,2.80515]
[1746611044350,3.6,1844.1,1844.0,10.05988282]
[1746611044549,3.6,1844.1,1844.0,15.05988282]
[1746611044849,1.5831,1844.4,1844.3,1.08447]
[1746611045239,5.1831,1844.4,1844.3,1.08447]
[1746611045447,5.1831,1844.4,1844.3,2.76287]
[1746611047446,3.6,1844.4,1844.3,2.76287]
[1746611049152,3.6,1844.4,1844.3,5.97067]
[1746611051351,5.1874,1844.4,1844.3,5.97067]
[1746611053050,7.10691,1844.4,1844.3,5.97067]
[1746611053247,6.0225,1844.4,1844.3,5.97067]
[1746611053855,6.8365,1844.4,1844.3,5.97067]
[1746611054160,6.8365,1844.4,1844.3,4.29227]
[1746611054354,6.8365,1844.4,1844.3,1.08447]
[1746611054556,7.92091,1844.4,1844.3,1.08447]
[1746611059752,1.08453,1844.3,1844.2,1.08448]
[1746611060056,1.08459,1844.2,1844.1,1.08453]
[1746611060659,2.77159,1844.2,1844.1,1.08453]
[1746611061260,6.37159,1844.2,1844.1,1.08453]
[1746611064160,5.287,1844.2,1844.1,1.08453]
[1746611064864,5.287,1844.2,1844.1,1.93473]
[1746611065063,5.287,1844.2,1844.1,3.63973]
[1746611066253,5.287,1844.2,1844.1,6.84753]
[1746611066464,3.6,1844.2,1844.1,6.84753]
[1746611066866,3.6,1844.2,1844.1,5.14253]
[1746611067059,5.2927,1844.2,1844.1,5.14253]
[1746611068466,5.2927,1844.2,1844.1,1.93473]
[1746611070265,5.2927,1844.2,1844.1,1.08453]
[1746611070465,6.37723,1844.2,1844.1,1.08453]
[1746611071969,1.08465,1844.1,1844.0,1.0846]
[1746611072268,4.37815,1844.1,1844.0,1.0846]
[1746611073170,7.97815,1844.1,1844.0,1.0846]
[1746611075065,6.8935,1844.1,1844.0,1.0846]
[1746611076772,7.97809,1844.1,1844.0,1.0846]
[1746611082174,6.8935,1844.1,1844.0,1.0846]
[1746611082376,6.0862,1844.1,1844.0,3.543]
[1746611082769,7.17079,1844.1,1844.0,3.543]
[1746611083477,7.17079,1844.1,1844.0,1.8791]
[1746611083676,7.17079,1844.1,1844.0,1.0846]
[1746611085777,6.0862,1844.1,1844.0,1.0846]
[1746611085979,7.17079,1844.1,1844.0,1.0846]
[1746611086177,6.0862,1844.1,1844.0,1.0846]
[1746611087383,7.17079,1844.1,1844.0,1.0846]
[1746611094893,1.08465,1844.0,1843.9,4.29245]
[1746611095094,2.72535,1844.0,1843.9,4.29245]
[1746611096089,6.32535,1844.0,1843.9,4.29245]
[1746611096296,6.32535,1844.0,1843.9,1.08465]
[1746611096885,1.08477,1843.9,1843.8,1.08473]
[1746611097090,7.19737,1843.9,1843.8,1.08473]
[1746611098183,1.08477,1843.8,1843.7,19.14478975]
[1746611098387,3.59047,1843.8,1843.7,19.14478975]
[1746611098998,3.59047,1843.8,1843.7,18.06000975]
[1746611099295,7.19047,1843.8,1843.7,19.14482975]
[1746611099890,7.19047,1843.8,1843.7,1.08482]
[1746611100293,7.19051,1843.8,1843.7,1.08482]
[1746611100493,6.1057,1843.8,1843.5,10.2488]
[1746611100797,1.6726,1843.7,1843.6,3.55758]
[1746611101398,4.4331,1843.8,1843.7,1.08482]
[1746611101605,4.4331,1843.8,1843.7,2.81682]
[1746611102199,3.6,1843.8,1843.7,2.81682]
[1746611102697,5.3146,1843.8,1843.7,2.81682]
[1746611103104,3.6,1843.8,1843.7,6.02462]
[1746611106407,3.6,1843.8,1843.7,33.44979336]
[1746611109205,3.6,1843.8,1843.7,26.22578946]
[1746611110602,2.38185,1843.8,1843.7,26.22578946]
[1746611110805,1e-05,1843.8,1843.7,26.22578946]
[1746611111007,1.6237,1844.2,1844.1,1.08459]
[1746611111205,1.6237,1844.2,1844.1,4.29239]
[1746611112307,5.2237,1844.2,1844.1,4.29239]
[1746611114207,5.2237,1844.2,1844.1,1.08459]
[1746611114408,5.2237,1844.2,1844.1,4.29239]
[1746611116401,5.2237,1844.2,1844.1,5.90509]
[1746611117604,3.6,1844.2,1844.1,5.90509]
[1746611117806,3.6,1844.2,1844.1,6.75629]
[1746611119809,3.6,1844.2,1844.1,13.98478444]
[1746611121507,2.42149,1844.2,1844.1,13.98478444]
[1746611122104,1.6768,1844.4,1844.3,1.08447]
[1746611122310,1.6768,1844.4,1844.3,4.29227]
[1746611123113,5.2768,1844.4,1844.3,4.29227]
[1746611123314,5.2768,1844.4,1844.3,5.10397]
[1746611125116,2.34956,1844.4,1844.3,5.10397]
[1746611125307,3.6,1844.5,1844.4,1.08441]
[1746611125614,3.6,1844.5,1844.4,3.48621]
[1746611126314,0.7979,1844.8,1844.7,1.08424]
[1746611126510,3.6,1844.9,1844.8,1.08418]
[1746611126718,3.6,1844.9,1844.8,3.46348]
[1746611127015,3.6,1844.9,1844.8,4.28438]
[1746611127220,1.6251,1845.0,1844.9,1.08412]
[1746611127408,1.6251,1845.0,1844.9,5.87282]
[1746611128213,5.2251,1845.0,1844.9,5.87282]
[1746611130318,5.2251,1845.0,1844.9,4.29192]
[1746611149822,5.2251,1845.0,1844.9,0.98412]
[1746611149823,6.30916,1845.0,1844.9,0.98412]
[1746611150019,5.2251,1845.0,1844.9,0.98412]
[1746611150225,1.08415,1844.9,1844.8,1.08413]
[1746611150426,4.51725,1844.9,1844.8,1.08413]
[1746611151033,3.4331,1844.9,1844.8,1.08413]
[1746611151331,7.0331,1844.9,1844.8,1.08413]
[1746611151931,7.0331,1844.9,1844.8,0.98413]
[1746611152827,8.11722,1844.9,1844.8,0.98413]
[1746611154432,7.0331,1844.9,1844.8,0.98413]
[1746611154634,8.11722,1844.9,1844.8,0.98413]
[1746611154934,7.0331,1844.9,1844.8,0.98413]
[1746611155235,8.11722,1844.9,1844.8,0.98413]
[1746611155733,7.0331,1844.9,1844.8,0.98413]
[1746611157531,8.11722,1844.9,1844.8,0.98413]
[1746611163240,7.0331,1844.9,1844.8,0.98413]
[1746611164339,8.11722,1844.9,1844.8,0.98413]
[1746611168040,7.0331,1844.9,1844.8,0.98413]
[1746611168234,5.3036,1844.9,1844.8,0.98413]
[1746611168430,5.3036,1844.9,1844.8,2.66863]
[1746611168635,5.3036,1844.9,1844.8,3.48083]
[1746611170246,3.6,1844.9,1844.8,3.48083]
[1746611171353,2.5286,1845.1,1845.0,1.08406]
[1746611172151,7.2126,1845.1,1845.0,1.08406]
[1746611172549,1.08409,1845.0,1844.9,1.08407]
[1746611172855,1.08416,1844.9,1844.8,1.08415]
[1746611173153,1.08418,1844.8,1844.7,4.29201]
[1746611173346,2.468,1844.8,1844.7,4.29201]
[1746611173653,3.55218,1844.8,1844.7,4.29201]
[1746611173855,3.55218,1844.8,1844.7,1.08421]
[1746611174358,7.15218,1844.8,1844.7,1.08421]
[1746611175057,2.03371,1844.8,1844.7,4.29201]
[1746611175257,1.636,1845.0,1844.9,1.08412]
[1746611175460,1.636,1845.0,1844.9,4.29192]
[1746611176154,5.236,1845.0,1844.9,4.29192]
[1746611178164,5.236,1845.0,1844.9,1.08412]
[1746611178961,5.236,1845.0,1844.9,2.76242]
[1746611181262,3.6,1845.0,1844.9,2.76242]
[1746611190176,3.6,1845.0,1844.9,5.97022]
[1746611195970,1.23869,1845.0,1844.9,5.97022]
[1746611196173,1.6512,1845.1,1845.0,1.08406]
[1746611196367,1.6512,1845.1,1845.0,3.48066]
[1746611197174,5.2512,1845.1,1845.0,3.48066]
[1746611197673,3.6,1845.1,1845.0,10.69425277]
[1746611197872,5.1816,1845.1,1845.0,10.69425277]
[1746611201079,5.1816,1845.1,1845.0,3.48066]
[1746611202874,5.1816,1845.1,1845.0,1.89116]
[1746611203373,5.1816,1845.1,1845.0,1.08406]
[1746611208575,5.1816,1845.1,1845.0,0.98406]
[1746611213387,6.2656,1845.1,1845.0,0.98406]
[1746611213587,6.2656,1845.1,1844.7,9.92416277]
[1746611213588,1.08412,1845.0,1844.9,1.08411]
[1746611213789,3.55292,1845.0,1844.9,1.08411]
[1746611214180,7.15292,1845.0,1844.9,1.08411]
[1746611217590,1.08415,1844.9,1844.8,1.08413]
[1746611217784,6.77245,1844.9,1844.8,1.08413]
[1746611217990,6.77245,1844.9,1844.7,1.0842]
[1746611217991,1.08418,1844.8,1844.7,1.0842]
[1746611218183,1.0843,1844.7,1844.6,1.08425]
[1746611218379,1.8997,1844.7,1844.6,1.08425]
[1746611218583,3.5755,1844.7,1844.6,1.08425]
[1746611219193,1.0843,1844.6,1844.5,8.29790277]
[1746611219388,3.606,1844.6,1844.5,8.29790277]
[1746611219690,3.606,1844.6,1844.5,8.29794277]
[1746611220087,6.1217,1844.6,1844.5,8.29794277]
[1746611220492,6.1217,1844.6,1844.5,11.50574277]
[1746611222087,6.1217,1844.6,1844.5,4.29215]
[1746611223492,5.2758,1844.6,1844.5,4.29215]
[1746611223693,5.2758,1844.6,1844.5,5.91945]
[1746611229093,3.6,1844.6,1844.5,6.74125]
[1746611231196,1.7187,1844.7,1844.6,1.0843]
[1746611231396,1.7187,1844.7,1844.6,2.832]
[1746611231787,1.7187,1844.7,1844.6,1.0843]
[1746611232192,5.3187,1844.7,1844.6,1.0843]
[1746611233001,6.40294,1844.7,1844.6,1.0843]
[1746611238400,5.3187,1844.7,1844.6,1.0843]
[1746611239504,6.40294,1844.7,1844.6,1.0843]
[1746611270031,1.0843,1844.6,1844.5,3.58881]
[1746611270229,7.1357,1844.6,1844.5,3.58881]
[1746611270929,7.1357,1844.6,1844.5,1.89711]
[1746611272029,7.1357,1844.6,1844.5,1.08431]
[1746611275630,6.0514,1844.6,1844.5,1.89461]
[1746611275829,6.2759,1844.6,1844.5,3.53551]
[1746611276232,3.6,1844.6,1844.5,3.53551]
[1746611277431,3.6,1844.6,1844.5,11.74331]
[1746611277627,3.6,1844.6,1844.5,12.55261]
[1746611278130,10.98187665,1845.2,1844.5,12.55261]
[1746611278328,12.72447665,1845.2,1845.0,1.08404]
[1746611278523,12.72447665,1845.2,1845.1,0.8173]
[1746611279036,10.14237665,1845.2,1845.1,0.8173]
[1746611279335,13.74237665,1845.2,1845.1,2.4733]
[1746611279736,13.74237665,1845.2,1845.1,0.8173]
[1746611280034,13.74237665,1845.2,1844.9,5.1012]
[1746611280035,1.08402,1845.1,1844.9,5.1012]
[1746611280231,1.08402,1845.1,1845.0,0.8558]
[1746611280232,2.82662,1845.1,1845.0,0.8558]
[1746611280423,3.65392,1845.1,1845.0,0.8558]
[1746611281234,1.08406,1845.0,1844.9,3.2078]
[1746611281427,1.6742,1845.0,1844.9,3.2078]
[1746611281631,1.6742,1845.0,1844.9,4.29192]
[1746611282341,5.2742,1845.0,1844.9,4.29192]
[1746611282641,3.6,1845.0,1844.9,4.29192]
[1746611282937,3.6,1845.0,1844.9,5.97652]
[1746611288343,1.6742,1845.2,1845.1,1.084]
[1746611288734,1.6742,1845.2,1845.1,1.917]
[1746611289139,5.2742,1845.2,1845.1,1.917]
[1746611289339,6.35814,1845.2,1845.1,1.917]
[1746611289741,7.16164,1845.2,1845.1,1.084]